[Event "FIDE World Rapid Chess Championship 2021"]
[White "Dreev, Aleksey"]
[Black "Nihal, Sarin"]
[WhiteFideId "4100107"]
[BlackFideId "25092340"]
[WhiteElo "2621"]
[BlackElo "2500"]
[Result "1-0"]
[Round "06"]
[TimeControl "900+10"]
[Date "2021.12.27"]
[WhiteClock "0:00:45"]
[BlackClock "0:00:05"]

1. d4 {[%clk 0:15:00]}  g6 {[%clk 0:15:00]} 2. e4 {[%clk 0:15:00]}  Bg7 {[%clk 0:15:00]} 3. Nf3 {[%clk 0:15:23]}  d6 {[%clk 0:15:28]} 4. Nc3 {[%clk 0:15:23]}  Nc6 {[%clk 0:15:28]} 5. Be3 {[%clk 0:15:23]}  Nf6 {[%clk 0:15:28]} 6. Qd2 {[%clk 0:15:32]}  O-O {[%clk 0:14:33]} 7. O-O-O {[%clk 0:13:09]}  Bg4 {[%clk 0:14:33]} 8. Bh6 {[%clk 0:13:09]}  Bxf3 {[%clk 0:14:33]} 9. gxf3 {[%clk 0:12:35]}  e5 {[%clk 0:12:44]} 10. Bxg7 {[%clk 0:12:34]}  Kxg7 {[%clk 0:12:51]} 11. d5 {[%clk 0:12:34]}  Nd4 {[%clk 0:12:51]} 12. f4 {[%clk 0:12:34]}  Nh5 {[%clk 0:12:51]} 13. fxe5 {[%clk 0:12:34]}  dxe5 {[%clk 0:12:51]} 14. Qe3 {[%clk 0:10:59]}  Qf6 {[%clk 0:13:14]} 15. Na4 {[%clk 0:10:40]}  b6 {[%clk 0:13:04]} 16. c3 {[%clk 0:09:14]}  c5 {[%clk 0:06:50]} 17. cxd4 {[%clk 0:08:37]}  cxd4 {[%clk 0:05:43]} 18. Qd2 {[%clk 0:06:11]}  Qf3 {[%clk 0:04:40]} 19. Bd3 {[%clk 0:02:53]}  Rfc8+ {[%clk 0:04:43]} 20. Kb1 {[%clk 0:02:53]}  b5 {[%clk 0:04:43]} 21. Bxb5 {[%clk 0:02:53]}  Qxe4+ {[%clk 0:04:43]} 22. Bd3 {[%clk 0:02:53]}  Qxd5 {[%clk 0:04:43]} 23. Rhe1 {[%clk 0:02:53]}  Rab8 {[%clk 0:05:03]} 24. b3 {[%clk 0:02:24]}  Nf4 {[%clk 0:04:21]} 25. Nb2 {[%clk 0:01:57]}  Rc3 {[%clk 0:01:34]} 26. Rc1 {[%clk 0:01:56]}  Qa5 {[%clk 0:00:20]} 27. Bc4 {[%clk 0:02:03]}  Rxc1+ {[%clk 0:00:00]} 28. Qxc1 {[%clk 0:02:03]}  Rc8 {[%clk 0:00:00]} 29. Qd1 {[%clk 0:02:03]}  f6 {[%clk 0:00:00]} 30. Rg1 {[%clk 0:01:01]}  Nd5 {[%clk 0:00:00]} 31. Bxd5 {[%clk 0:01:01]}  Qxd5 {[%clk 0:00:00]} 32. Nc4 {[%clk 0:01:01]}  Rc7 {[%clk 0:00:00]} 33. f3 {[%clk 0:01:01]}  d3 {[%clk 0:00:00]} 34. Re1 {[%clk 0:01:01]}  Qd4 {[%clk 0:00:00]} 35. Qd2 {[%clk 0:00:58]}  Rd7 {[%clk 0:00:06]} 36. Re4 {[%clk 0:00:58]}  Qg1+ {[%clk 0:00:06]} 37. Kb2 {[%clk 0:00:58]}  Qf1 {[%clk 0:00:06]} 38. Re3 {[%clk 0:00:58]}  Rd4 {[%clk 0:00:06]} 39. a4 {[%clk 0:00:58]}  a6 {[%clk 0:00:06]} 40. a5 {[%clk 0:00:58]}  h5 {[%clk 0:00:25]} 41. Ka2 {[%clk 0:01:09]}  h4 {[%clk 0:00:25]} 42. Nb2 {[%clk 0:01:09]}  h3 {[%clk 0:00:10]} 43. Rxd3 {[%clk 0:00:36]}  Rxd3 {[%clk 0:00:10]} 44. Qxd3 {[%clk 0:00:36]}  Qg2 {[%clk 0:00:10]} 45. Qxa6 {[%clk 0:00:36]}  Qxh2 {[%clk 0:00:10]} 46. Qb7+ {[%clk 0:00:23]}  Kh6 {[%clk 0:00:27]} 47. a6 {[%clk 0:00:23]}  Qd2 {[%clk 0:00:27]} 48. a7 {[%clk 0:00:23]}  Qa5+ {[%clk 0:00:27]} 49. Na4 {[%clk 0:00:23]}  Qd2+ {[%clk 0:00:27]} 50. Ka3 {[%clk 0:00:23]}  Qc1+ {[%clk 0:00:27]} 51. Kb4 {[%clk 0:00:23]}  Qd2+ {[%clk 0:00:27]} 52. Nc3 {[%clk 0:00:36]}  Qd4+ {[%clk 0:00:15]} 53. Ka3 {[%clk 0:00:36]}  Qc5+ {[%clk 0:00:15]} 54. Ka4 {[%clk 0:00:36]}  Qxc3 {[%clk 0:00:15]} 55. a8=Q {[%clk 0:00:36]}  Kg5 {[%clk 0:00:15]} 56. Qe4 {[%clk 0:00:36]}  Qa1+ {[%clk 0:00:05]} 57. Kb4 {[%clk 0:00:45]}  Qg1 {[%clk 0:00:05]} 58. Qxg6+ {[%clk 0:00:45]} 1-0


[Site "http://www.Chess.com"]

[Event "FIDE World Rapid Chess Championship 2021"]
[White "Santos Latasa, Jaime"]
[Black "Narayanan.S.L, "]
[WhiteFideId "2293307"]
[BlackFideId "5058422"]
[WhiteElo "2618"]
[BlackElo "2482"]
[Result "1/2-1/2"]
[Round "06"]
[TimeControl "900+10"]
[Date "2021.12.27"]
[WhiteClock "0:01:08"]
[BlackClock "0:01:55"]

1. d4 {[%clk 0:15:00]}  Nf6 {[%clk 0:15:00]} 2. c4 {[%clk 0:15:00]}  e6 {[%clk 0:15:00]} 3. Nf3 {[%clk 0:15:00]}  d5 {[%clk 0:15:32]} 4. g3 {[%clk 0:15:34]}  Be7 {[%clk 0:15:32]} 5. Bg2 {[%clk 0:15:34]}  O-O {[%clk 0:15:32]} 6. Nc3 {[%clk 0:15:34]}  Nbd7 {[%clk 0:15:32]} 7. Qd3 {[%clk 0:15:34]}  b6 {[%clk 0:15:31]} 8. cxd5 {[%clk 0:15:49]}  Nxd5 {[%clk 0:15:31]} 9. O-O {[%clk 0:15:49]}  c5 {[%clk 0:14:02]} 10. Rd1 {[%clk 0:16:02]}  Bb7 {[%clk 0:14:02]} 11. Nxd5 {[%clk 0:13:00]}  exd5 {[%clk 0:14:02]} 12. dxc5 {[%clk 0:13:00]}  bxc5 {[%clk 0:11:07]} 13. Qb5 {[%clk 0:12:41]}  Nb6 {[%clk 0:09:42]} 14. Qa5 {[%clk 0:12:42]}  h6 {[%clk 0:08:31]} 15. b3 {[%clk 0:09:39]}  Qd7 {[%clk 0:07:40]} 16. Ba3 {[%clk 0:09:36]}  Rfc8 {[%clk 0:06:06]} 17. Rac1 {[%clk 0:09:36]}  c4 {[%clk 0:06:06]} 18. Bxe7 {[%clk 0:09:34]}  Qxe7 {[%clk 0:05:15]} 19. Nd4 {[%clk 0:09:34]}  Rc5 {[%clk 0:05:23]} 20. Qa3 {[%clk 0:05:44]}  Rc7 {[%clk 0:03:48]} 21. Qxe7 {[%clk 0:05:44]}  Rxe7 {[%clk 0:03:38]} 22. e3 {[%clk 0:05:44]}  g6 {[%clk 0:03:38]} 23. h4 {[%clk 0:05:44]}  h5 {[%clk 0:03:38]} 24. Ne2 {[%clk 0:05:44]}  Rc8 {[%clk 0:03:57]} 25. b4 {[%clk 0:04:15]}  Rd8 {[%clk 0:03:34]} 26. Rd4 {[%clk 0:03:51]}  a6 {[%clk 0:00:27]} 27. Nc3 {[%clk 0:03:51]}  Bc6 {[%clk 0:00:27]} 28. e4 {[%clk 0:03:13]}  Red7 {[%clk 0:00:38]} 29. exd5 {[%clk 0:03:13]}  Nxd5 {[%clk 0:00:38]} 30. Bxd5 {[%clk 0:03:13]}  Bxd5 {[%clk 0:00:38]} 31. Nxd5 {[%clk 0:03:13]}  Rxd5 {[%clk 0:00:38]} 32. Rxd5 {[%clk 0:03:13]}  Rxd5 {[%clk 0:00:38]} 33. Rxc4 {[%clk 0:03:13]}  a5 {[%clk 0:00:38]} 34. bxa5 {[%clk 0:03:13]}  Rxa5 {[%clk 0:00:38]} 35. a4 {[%clk 0:03:13]}  Kg7 {[%clk 0:00:38]} 36. Kg2 {[%clk 0:03:13]}  f6 {[%clk 0:00:38]} 37. Kf3 {[%clk 0:03:13]}  g5 {[%clk 0:00:38]} 38. Ke3 {[%clk 0:03:13]}  Kg6 {[%clk 0:00:38]} 39. Rd4 {[%clk 0:02:25]}  Re5+ {[%clk 0:01:45]} 40. Kd3 {[%clk 0:02:25]}  Rf5 {[%clk 0:01:33]} 41. Ke3 {[%clk 0:01:37]}  Re5+ {[%clk 0:01:33]} 42. Re4 {[%clk 0:01:37]}  Rd5 {[%clk 0:01:33]} 43. Ke2 {[%clk 0:01:37]}  Rf5 {[%clk 0:01:25]} 44. hxg5 {[%clk 0:01:16]}  fxg5 {[%clk 0:01:25]} 45. g4 {[%clk 0:01:16]}  hxg4 {[%clk 0:01:25]} 46. Rxg4 {[%clk 0:01:16]}  Ra5 {[%clk 0:01:25]} 47. f4 {[%clk 0:01:19]}  Kf6 {[%clk 0:01:24]} 48. fxg5+ {[%clk 0:01:19]}  Kg6 {[%clk 0:01:24]} 49. Kd3 {[%clk 0:01:19]}  Ra8 {[%clk 0:01:24]} 50. Kc3 {[%clk 0:01:19]}  Kf5 {[%clk 0:01:24]} 51. Rc4 {[%clk 0:01:10]}  Kxg5 {[%clk 0:01:24]} 52. Kb4 {[%clk 0:01:10]}  Kf6 {[%clk 0:01:24]} 53. a5 {[%clk 0:01:10]}  Ke6 {[%clk 0:01:24]} 54. Rd4 {[%clk 0:01:10]}  Ke7 {[%clk 0:01:24]} 55. Kb5 {[%clk 0:01:10]}  Rd8 {[%clk 0:01:24]} 56. Rc4 {[%clk 0:01:06]}  Rb8+ {[%clk 0:01:22]} 57. Ka6 {[%clk 0:01:06]}  Kd7 {[%clk 0:01:22]} 58. Ka7 {[%clk 0:01:06]}  Rb1 {[%clk 0:01:22]} 59. a6 {[%clk 0:01:06]}  Rb2 {[%clk 0:01:22]} 60. Ka8 {[%clk 0:01:06]}  Rb1 {[%clk 0:01:22]} 61. a7 {[%clk 0:01:06]}  Rb2 {[%clk 0:01:22]} 62. Rh4 {[%clk 0:01:08]}  Rb1 {[%clk 0:01:55]} 63. Rh8 {[%clk 0:01:08]}  Kc7 {[%clk 0:01:55]} 64. Rb8 {[%clk 0:01:08]}  Rc1 {[%clk 0:01:55]} 65. Rb7+ {[%clk 0:01:08]}  Kc8 {[%clk 0:01:55]} 66. Rb8+ {[%clk 0:01:08]}  Kc7 {[%clk 0:01:55]} 1/2-1/2


[Site "http://www.Chess.com"]

[Event "FIDE World Rapid Chess Championship 2021"]
[White "Amin, Bassem"]
[Black "Martirosyan, Haik M."]
[WhiteFideId "10601457"]
[BlackFideId "13306553"]
[WhiteElo "2614"]
[BlackElo "2377"]
[Result "1/2-1/2"]
[Round "06"]
[TimeControl "900+10"]
[Date "2021.12.27"]
[WhiteClock "0:00:47"]
[BlackClock "0:00:31"]

1. e4 {[%clk 0:15:00]}  c5 {[%clk 0:15:00]} 2. Nf3 {[%clk 0:15:00]}  Nc6 {[%clk 0:15:22]} 3. Bb5 {[%clk 0:15:24]}  e6 {[%clk 0:15:22]} 4. O-O {[%clk 0:15:24]}  Nge7 {[%clk 0:15:22]} 5. Re1 {[%clk 0:15:24]}  a6 {[%clk 0:15:22]} 6. Bf1 {[%clk 0:15:24]}  d5 {[%clk 0:15:22]} 7. exd5 {[%clk 0:15:35]}  Nxd5 {[%clk 0:15:20]} 8. d4 {[%clk 0:15:35]}  Nf6 {[%clk 0:15:20]} 9. Be3 {[%clk 0:15:14]}  cxd4 {[%clk 0:14:33]} 10. Nxd4 {[%clk 0:14:24]}  Bd7 {[%clk 0:14:33]} 11. c4 {[%clk 0:14:31]}  Nxd4 {[%clk 0:12:25]} 12. Qxd4 {[%clk 0:11:15]}  Qc7 {[%clk 0:11:46]} 13. Bf4 {[%clk 0:10:40]}  Qc5 {[%clk 0:08:35]} 14. Be5 {[%clk 0:09:16]}  Bc6 {[%clk 0:07:10]} 15. Bxf6 {[%clk 0:09:17]}  gxf6 {[%clk 0:06:39]} 16. Qxf6 {[%clk 0:09:17]}  Rg8 {[%clk 0:06:39]} 17. Nc3 {[%clk 0:04:57]}  Rg6 {[%clk 0:06:28]} 18. Qf4 {[%clk 0:03:08]}  Bh6 {[%clk 0:04:09]} 19. Ne4 {[%clk 0:03:08]}  Qe7 {[%clk 0:03:47]} 20. Qd6 {[%clk 0:02:58]}  Rd8 {[%clk 0:03:07]} 21. Qxe7+ {[%clk 0:02:03]}  Kxe7 {[%clk 0:03:07]} 22. Ng3 {[%clk 0:02:03]}  Bf4 {[%clk 0:03:07]} 23. Rad1 {[%clk 0:01:55]}  Rgg8 {[%clk 0:02:34]} 24. b3 {[%clk 0:01:55]}  Bd2 {[%clk 0:02:34]} 25. Re2 {[%clk 0:01:16]}  Bb4 {[%clk 0:02:35]} 26. Rc1 {[%clk 0:01:16]}  Rg5 {[%clk 0:02:35]} 27. Rec2 {[%clk 0:00:17]}  h5 {[%clk 0:02:26]} 28. h4 {[%clk 0:00:17]}  Rg4 {[%clk 0:02:15]} 29. Be2 {[%clk 0:00:25]}  Rxh4 {[%clk 0:02:15]} 30. Bxh5 {[%clk 0:00:25]}  Rd3 {[%clk 0:02:15]} 31. Bf3 {[%clk 0:00:25]}  Bxf3 {[%clk 0:01:58]} 32. gxf3 {[%clk 0:00:17]}  Rxf3 {[%clk 0:01:58]} 33. Rd1 {[%clk 0:00:17]}  b6 {[%clk 0:01:58]} 34. Kg2 {[%clk 0:00:17]}  Rf6 {[%clk 0:01:58]} 35. Re2 {[%clk 0:00:17]}  Rhf4 {[%clk 0:01:07]} 36. Rd3 {[%clk 0:00:33]}  Bc5 {[%clk 0:01:07]} 37. Rdd2 {[%clk 0:00:33]}  a5 {[%clk 0:01:07]} 38. Ne4 {[%clk 0:00:33]}  Rg6+ {[%clk 0:01:07]} 39. Kf1 {[%clk 0:00:22]}  Rh4 {[%clk 0:00:57]} 40. Ng3 {[%clk 0:00:22]}  Rh2 {[%clk 0:00:57]} 41. Rd3 {[%clk 0:00:22]}  Kf8 {[%clk 0:00:57]} 42. Rf3 {[%clk 0:00:22]}  Ke8 {[%clk 0:00:57]} 43. Rd2 {[%clk 0:00:22]}  Rg4 {[%clk 0:00:41]} 44. Re2 {[%clk 0:00:22]}  Rd4 {[%clk 0:00:41]} 45. Kg1 {[%clk 0:00:22]}  Rh8 {[%clk 0:00:41]} 46. Kg2 {[%clk 0:00:22]}  Rd1 {[%clk 0:00:41]} 47. Ne4 {[%clk 0:00:22]}  Rhh1 {[%clk 0:00:41]} 48. Rg3 {[%clk 0:00:26]}  Rhg1+ {[%clk 0:01:02]} 49. Kh2 {[%clk 0:00:26]}  Rh1+ {[%clk 0:01:02]} 50. Kg2 {[%clk 0:00:26]}  Ke7 {[%clk 0:01:02]} 51. Nxc5 {[%clk 0:00:26]}  bxc5 {[%clk 0:01:02]} 52. Kf3 {[%clk 0:00:26]}  Kf6 {[%clk 0:00:57]} 53. Rg8 {[%clk 0:00:19]}  Kf5 {[%clk 0:00:57]} 54. Rc8 {[%clk 0:00:19]}  e5 {[%clk 0:00:57]} 55. Rxc5 {[%clk 0:00:19]}  f6 {[%clk 0:00:57]} 56. Rxa5 {[%clk 0:00:19]}  Rh3+ {[%clk 0:00:57]} 57. Kg2 {[%clk 0:00:19]}  Rhh1 {[%clk 0:00:16]} 58. Re3 {[%clk 0:00:47]}  Kf4 {[%clk 0:00:16]} 59. Rf3+ {[%clk 0:00:47]}  Ke4 {[%clk 0:00:16]} 60. Re3+ {[%clk 0:00:47]}  Kf4 {[%clk 0:00:16]} 61. Rf3+ {[%clk 0:00:47]}  Ke4 {[%clk 0:00:31]} 1/2-1/2


[Site "http://www.Chess.com"]

[Event "FIDE World Rapid Chess Championship 2021"]
[White "Chigaev, Maksim"]
[Black "Sargsyan, Shant"]
[WhiteFideId "4108116"]
[BlackFideId "13306766"]
[WhiteElo "2605"]
[BlackElo "2344"]
[Result "1/2-1/2"]
[Round "06"]
[TimeControl "900+10"]
[Date "2021.12.27"]
[WhiteClock "0:00:43"]
[BlackClock "0:00:30"]

1. d4 {[%clk 0:15:00]}  Nf6 {[%clk 0:15:00]} 2. c4 {[%clk 0:15:16]}  e6 {[%clk 0:15:00]} 3. Nf3 {[%clk 0:15:16]}  d5 {[%clk 0:15:00]} 4. g3 {[%clk 0:15:16]}  Bb4+ {[%clk 0:15:00]} 5. Nbd2 {[%clk 0:15:16]}  O-O {[%clk 0:15:00]} 6. Bg2 {[%clk 0:15:16]}  b6 {[%clk 0:15:00]} 7. O-O {[%clk 0:15:16]}  Bb7 {[%clk 0:15:00]} 8. Ne5 {[%clk 0:15:16]}  Nc6 {[%clk 0:15:00]} 9. Nxc6 {[%clk 0:16:02]}  Bxc6 {[%clk 0:15:20]} 10. Qc2 {[%clk 0:16:02]}  Bb7 {[%clk 0:15:27]} 11. Rd1 {[%clk 0:12:41]}  h6 {[%clk 0:14:11]} 12. cxd5 {[%clk 0:12:26]}  exd5 {[%clk 0:12:29]} 13. Nf3 {[%clk 0:12:26]}  Bd6 {[%clk 0:12:27]} 14. b3 {[%clk 0:11:44]}  Re8 {[%clk 0:12:27]} 15. Bb2 {[%clk 0:11:44]}  Qe7 {[%clk 0:11:44]} 16. e3 {[%clk 0:11:17]}  Ne4 {[%clk 0:11:44]} 17. Rac1 {[%clk 0:11:17]}  a5 {[%clk 0:11:26]} 18. a4 {[%clk 0:11:05]}  Rac8 {[%clk 0:11:02]} 19. Qe2 {[%clk 0:09:53]}  Qe6 {[%clk 0:10:36]} 20. Rc2 {[%clk 0:08:30]}  Re7 {[%clk 0:09:15]} 21. Rdc1 {[%clk 0:07:41]}  Rce8 {[%clk 0:09:15]} 22. Ne1 {[%clk 0:07:39]}  Qg6 {[%clk 0:07:43]} 23. Qd1 {[%clk 0:05:50]}  h5 {[%clk 0:07:43]} 24. Nf3 {[%clk 0:05:50]}  Qf5 {[%clk 0:04:06]} 25. Ne5 {[%clk 0:04:07]}  h4 {[%clk 0:04:06]} 26. g4 {[%clk 0:04:07]}  Qe6 {[%clk 0:02:41]} 27. h3 {[%clk 0:03:22]}  Bxe5 {[%clk 0:01:11]} 28. dxe5 {[%clk 0:03:25]}  c5 {[%clk 0:01:11]} 29. Bxe4 {[%clk 0:03:31]}  dxe4 {[%clk 0:01:06]} 30. Rd2 {[%clk 0:03:31]}  Qc8 {[%clk 0:01:06]} 31. Qc2 {[%clk 0:03:31]}  Rd7 {[%clk 0:00:52]} 32. Rxd7 {[%clk 0:00:59]}  Qxd7 {[%clk 0:00:52]} 33. Rd1 {[%clk 0:00:59]}  Qc8 {[%clk 0:00:52]} 34. Rd6 {[%clk 0:00:59]}  Re6 {[%clk 0:00:52]} 35. Qd1 {[%clk 0:00:50]}  Rxd6 {[%clk 0:00:35]} 36. exd6 {[%clk 0:00:50]}  Qd7 {[%clk 0:00:35]} 37. Kh2 {[%clk 0:00:50]}  f6 {[%clk 0:00:35]} 38. Qd2 {[%clk 0:00:50]}  Kf7 {[%clk 0:00:33]} 39. g5 {[%clk 0:00:29]}  fxg5 {[%clk 0:00:33]} 40. Kg1 {[%clk 0:00:29]}  Kg6 {[%clk 0:00:33]} 41. Qc3 {[%clk 0:00:29]}  Bc6 {[%clk 0:00:33]} 42. Qe5 {[%clk 0:00:29]}  Qf7 {[%clk 0:00:15]} 43. Bc3 {[%clk 0:00:31]}  Qf6 {[%clk 0:00:15]} 44. d7 {[%clk 0:00:31]}  Qxe5 {[%clk 0:00:15]} 45. Bxe5 {[%clk 0:00:31]}  Bxd7 {[%clk 0:00:15]} 46. Bc7 {[%clk 0:00:31]}  Bxh3 {[%clk 0:00:42]} 47. Bxb6 {[%clk 0:01:05]}  Be6 {[%clk 0:00:42]} 48. Bxc5 {[%clk 0:01:05]}  Bxb3 {[%clk 0:00:42]} 49. Bb6 {[%clk 0:01:05]}  Bxa4 {[%clk 0:00:42]} 50. Bxa5 {[%clk 0:01:05]}  Kf5 {[%clk 0:00:42]} 51. Bd8 {[%clk 0:01:05]}  Kg4 {[%clk 0:00:42]} 52. Be7 {[%clk 0:01:05]}  Bd1 {[%clk 0:00:42]} 53. Kg2 {[%clk 0:00:33]}  Be2 {[%clk 0:00:26]} 54. Bf8 {[%clk 0:00:33]}  h3+ {[%clk 0:00:26]} 55. Kg1 {[%clk 0:00:33]}  g6 {[%clk 0:00:26]} 56. Be7 {[%clk 0:00:43]}  Bf3 {[%clk 0:00:30]} 57. Bd8 {[%clk 0:00:43]}  Bg2 {[%clk 0:00:30]} 58. Bc7 {[%clk 0:00:43]}  Kf3 {[%clk 0:00:30]} 59. Bb8 {[%clk 0:00:43]}  g4 {[%clk 0:00:30]} 60. Bc7 {[%clk 0:00:43]} 1/2-1/2


[Site "http://www.Chess.com"]

[Event "FIDE World Rapid Chess Championship 2021"]
[White "Sindarov, Javokhir"]
[Black "Erdos, Viktor"]
[WhiteFideId "14205483"]
[BlackFideId "719978"]
[WhiteElo "2353"]
[BlackElo "2601"]
[Result "1/2-1/2"]
[Round "06"]
[TimeControl "900+10"]
[Date "2021.12.27"]
[WhiteClock "0:01:22"]
[BlackClock "0:00:25"]

1. e4 {[%clk 0:15:00]}  e5 {[%clk 0:15:00]} 2. Nf3 {[%clk 0:15:00]}  Nc6 {[%clk 0:15:00]} 3. Bc4 {[%clk 0:15:00]}  Bc5 {[%clk 0:15:26]} 4. b4 {[%clk 0:15:35]}  Bxb4 {[%clk 0:15:26]} 5. c3 {[%clk 0:15:35]}  Ba5 {[%clk 0:15:26]} 6. d4 {[%clk 0:15:35]}  d6 {[%clk 0:15:26]} 7. Qb3 {[%clk 0:15:35]}  Qd7 {[%clk 0:15:26]} 8. O-O {[%clk 0:15:35]}  Bb6 {[%clk 0:15:26]} 9. Nbd2 {[%clk 0:15:35]}  Na5 {[%clk 0:15:24]} 10. Qc2 {[%clk 0:16:16]}  Nxc4 {[%clk 0:15:24]} 11. Nxc4 {[%clk 0:16:16]}  Qc6 {[%clk 0:13:25]} 12. Nxb6 {[%clk 0:16:43]}  axb6 {[%clk 0:13:25]} 13. dxe5 {[%clk 0:16:43]}  dxe5 {[%clk 0:13:25]} 14. Nxe5 {[%clk 0:16:43]}  Qa4 {[%clk 0:13:25]} 15. Qd3 {[%clk 0:16:43]}  Ne7 {[%clk 0:12:05]} 16. Qg3 {[%clk 0:16:51]}  O-O {[%clk 0:10:52]} 17. Re1 {[%clk 0:16:51]}  Re8 {[%clk 0:10:54]} 18. Bf4 {[%clk 0:09:28]}  Ng6 {[%clk 0:05:24]} 19. Nxg6 {[%clk 0:09:27]}  hxg6 {[%clk 0:05:18]} 20. Bxc7 {[%clk 0:09:27]}  Rxe4 {[%clk 0:05:18]} 21. h3 {[%clk 0:09:27]}  Qxa2 {[%clk 0:05:25]} 22. Rxe4 {[%clk 0:07:55]}  Qxa1+ {[%clk 0:05:25]} 23. Kh2 {[%clk 0:07:55]}  Be6 {[%clk 0:03:15]} 24. Bxb6 {[%clk 0:07:31]}  Re8 {[%clk 0:00:28]} 25. Bd4 {[%clk 0:07:31]}  Qa5 {[%clk 0:00:28]} 26. h4 {[%clk 0:06:23]}  Bd7 {[%clk 0:00:37]} 27. Rxe8+ {[%clk 0:05:40]}  Bxe8 {[%clk 0:00:32]} 28. Qb8 {[%clk 0:05:40]}  Qb5 {[%clk 0:00:32]} 29. g4 {[%clk 0:05:40]}  f6 {[%clk 0:00:31]} 30. g5 {[%clk 0:03:25]}  fxg5 {[%clk 0:00:31]} 31. hxg5 {[%clk 0:03:25]}  Kf7 {[%clk 0:00:31]} 32. Qc7+ {[%clk 0:03:34]}  Qd7 {[%clk 0:00:19]} 33. Qe5 {[%clk 0:03:34]}  Kg8 {[%clk 0:00:19]} 34. f4 {[%clk 0:03:34]}  Qf7 {[%clk 0:00:19]} 35. Kg3 {[%clk 0:02:16]}  Bc6 {[%clk 0:00:19]} 36. Kf2 {[%clk 0:02:16]}  Kh7 {[%clk 0:00:19]} 37. Kg3 {[%clk 0:02:16]}  Kg8 {[%clk 0:00:25]} 38. Kh4 {[%clk 0:01:22]}  Kh7 {[%clk 0:00:25]} 39. Kg3 {[%clk 0:01:22]} 1/2-1/2


[Site "http://www.Chess.com"]

[Event "FIDE World Rapid Chess Championship 2021"]
[White "Muradli, Mahammad"]
[Black "Quparadze, Giga"]
[WhiteFideId "13409301"]
[BlackFideId "13602250"]
[WhiteElo "2285"]
[BlackElo "2583"]
[Result "1-0"]
[Round "06"]
[TimeControl "900+10"]
[Date "2021.12.27"]
[WhiteClock "0:00:33"]
[BlackClock "0:04:16"]

1. c4 {[%clk 0:15:00]}  e6 {[%clk 0:15:00]} 2. Nc3 {[%clk 0:15:00]}  Bb4 {[%clk 0:15:00]} 3. g3 {[%clk 0:15:26]}  Nf6 {[%clk 0:15:28]} 4. Bg2 {[%clk 0:15:26]}  O-O {[%clk 0:15:28]} 5. Nf3 {[%clk 0:15:18]}  d5 {[%clk 0:15:32]} 6. cxd5 {[%clk 0:15:18]}  exd5 {[%clk 0:15:32]} 7. d4 {[%clk 0:15:18]}  Re8 {[%clk 0:15:32]} 8. O-O {[%clk 0:15:18]}  c6 {[%clk 0:15:32]} 9. a3 {[%clk 0:15:18]}  Bd6 {[%clk 0:16:03]} 10. Bf4 {[%clk 0:14:01]}  Bxf4 {[%clk 0:16:03]} 11. gxf4 {[%clk 0:14:01]}  Nbd7 {[%clk 0:16:03]} 12. e3 {[%clk 0:14:01]}  Nf8 {[%clk 0:16:03]} 13. Ne5 {[%clk 0:14:01]}  N6d7 {[%clk 0:16:03]} 14. Qb3 {[%clk 0:14:01]}  Nb6 {[%clk 0:16:03]} 15. Kh1 {[%clk 0:14:03]}  Ng6 {[%clk 0:16:30]} 16. Rg1 {[%clk 0:14:03]}  Nh4 {[%clk 0:16:18]} 17. e4 {[%clk 0:13:07]}  Qf6 {[%clk 0:16:18]} 18. exd5 {[%clk 0:12:27]}  Nxg2 {[%clk 0:16:05]} 19. Rxg2 {[%clk 0:12:27]}  cxd5 {[%clk 0:16:05]} 20. Rag1 {[%clk 0:12:16]}  g6 {[%clk 0:16:07]} 21. Nb5 {[%clk 0:11:00]}  Re7 {[%clk 0:16:15]} 22. Qb4 {[%clk 0:11:00]}  Bh3 {[%clk 0:16:07]} 23. Rg3 {[%clk 0:09:52]}  a5 {[%clk 0:16:07]} 24. Qd6 {[%clk 0:09:53]}  Re6 {[%clk 0:13:11]} 25. Qc5 {[%clk 0:09:53]}  Rc8 {[%clk 0:13:11]} 26. Nc7 {[%clk 0:09:53]}  Re7 {[%clk 0:13:11]} 27. Rxh3 {[%clk 0:09:53]}  Rexc7 {[%clk 0:12:35]} 28. Ng4 {[%clk 0:08:24]}  Qe6 {[%clk 0:12:35]} 29. f5 {[%clk 0:08:24]}  Rxc5 {[%clk 0:11:57]} 30. fxe6 {[%clk 0:06:48]}  Rc2 {[%clk 0:11:57]} 31. Rb3 {[%clk 0:06:56]}  R2c6 {[%clk 0:10:28]} 32. exf7+ {[%clk 0:04:55]}  Kg7 {[%clk 0:10:11]} 33. Re1 {[%clk 0:04:55]}  a4 {[%clk 0:10:11]} 34. Rb5 {[%clk 0:03:24]}  R8c7 {[%clk 0:09:27]} 35. Kg2 {[%clk 0:03:24]}  Nc4 {[%clk 0:08:42]} 36. Rxd5 {[%clk 0:00:30]}  Rxf7 {[%clk 0:07:02]} 37. Re2 {[%clk 0:00:30]}  Rcc7 {[%clk 0:07:02]} 38. Ne5 {[%clk 0:00:30]}  Rfe7 {[%clk 0:07:02]} 39. Rb5 {[%clk 0:00:30]}  Nd6 {[%clk 0:07:02]} 40. Ra5 {[%clk 0:00:14]}  b5 {[%clk 0:06:49]} 41. h3 {[%clk 0:00:14]}  Nf5 {[%clk 0:06:49]} 42. Rd2 {[%clk 0:00:14]}  Nxd4 {[%clk 0:06:53]} 43. Rxd4 {[%clk 0:00:09]}  Rxe5 {[%clk 0:06:53]} 44. Rdxa4 {[%clk 0:00:09]}  Rf5 {[%clk 0:06:53]} 45. Ra7 {[%clk 0:00:09]}  bxa4 {[%clk 0:06:53]} 46. Rxc7+ {[%clk 0:00:09]}  Kh6 {[%clk 0:06:53]} 47. Rc4 {[%clk 0:00:09]}  Ra5 {[%clk 0:06:53]} 48. Rh4+ {[%clk 0:00:09]}  Kg7 {[%clk 0:06:53]} 49. Rb4 {[%clk 0:00:09]}  h5 {[%clk 0:06:53]} 50. Kf3 {[%clk 0:00:09]}  Kf6 {[%clk 0:06:53]} 51. Kf4 {[%clk 0:00:09]}  g5+ {[%clk 0:07:10]} 52. Ke4 {[%clk 0:00:56]}  Re5+ {[%clk 0:07:10]} 53. Kd3 {[%clk 0:00:56]}  Rf5 {[%clk 0:07:10]} 54. Ke2 {[%clk 0:00:56]}  Re5+ {[%clk 0:07:10]} 55. Kf3 {[%clk 0:00:56]}  Ra5 {[%clk 0:07:17]} 56. Kg3 {[%clk 0:00:56]}  Kf5 {[%clk 0:07:17]} 57. Kf3 {[%clk 0:00:56]}  Kf6 {[%clk 0:07:17]} 58. Kg2 {[%clk 0:00:56]}  Kf5 {[%clk 0:07:17]} 59. Kg3 {[%clk 0:00:56]}  Kf6 {[%clk 0:07:17]} 60. f4 {[%clk 0:00:56]}  Kf5 {[%clk 0:07:17]} 61. fxg5 {[%clk 0:00:56]}  Kxg5 {[%clk 0:07:17]} 62. h4+ {[%clk 0:00:56]}  Kf5 {[%clk 0:07:17]} 63. Kf3 {[%clk 0:00:56]}  Ke5 {[%clk 0:08:11]} 64. Ke3 {[%clk 0:01:29]}  Kf5 {[%clk 0:08:11]} 65. Kd3 {[%clk 0:01:29]}  Ra8 {[%clk 0:08:11]} 66. Kc2 {[%clk 0:01:29]}  Ra7 {[%clk 0:08:11]} 67. Kc3 {[%clk 0:01:20]}  Ra8 {[%clk 0:08:18]} 68. b3 {[%clk 0:01:20]}  axb3 {[%clk 0:08:18]} 69. Kxb3 {[%clk 0:01:20]}  Ke6 {[%clk 0:07:34]} 70. Rb5 {[%clk 0:00:39]}  Rh8 {[%clk 0:07:34]} 71. a4 {[%clk 0:00:39]}  Kd6 {[%clk 0:07:34]} 72. Kb4 {[%clk 0:00:39]}  Kc6 {[%clk 0:07:34]} 73. a5 {[%clk 0:00:39]}  Rf8 {[%clk 0:06:56]} 74. Rc5+ {[%clk 0:00:55]}  Kb7 {[%clk 0:06:56]} 75. Rxh5 {[%clk 0:00:55]}  Rf4+ {[%clk 0:06:56]} 76. Kc5 {[%clk 0:00:55]}  Ka6 {[%clk 0:06:26]} 77. Kd6 {[%clk 0:00:56]}  Rc4 {[%clk 0:06:26]} 78. Kd5 {[%clk 0:00:56]}  Rg4 {[%clk 0:06:26]} 79. Ke6 {[%clk 0:00:56]}  Rc4 {[%clk 0:06:26]} 80. Kd6 {[%clk 0:00:23]}  Rd4+ {[%clk 0:06:40]} 81. Ke6 {[%clk 0:00:23]}  Rc4 {[%clk 0:06:40]} 82. Rh8 {[%clk 0:00:23]}  Kxa5 {[%clk 0:06:40]} 83. h5 {[%clk 0:00:23]}  Kb6 {[%clk 0:06:40]} 84. Rd8 {[%clk 0:00:23]}  Rh4 {[%clk 0:07:00]} 85. Rd5 {[%clk 0:00:09]}  Kc7 {[%clk 0:07:00]} 86. Kf6 {[%clk 0:00:09]}  Kc6 {[%clk 0:07:00]} 87. Rg5 {[%clk 0:00:09]}  Kd6 {[%clk 0:04:06]} 88. Kg7 {[%clk 0:00:45]}  Ra4 {[%clk 0:04:06]} 89. h6 {[%clk 0:00:45]}  Ra7+ {[%clk 0:04:06]} 90. Kg6 {[%clk 0:00:45]}  Ra8 {[%clk 0:04:16]} 91. h7 {[%clk 0:00:33]}  Re8 {[%clk 0:04:16]} 92. Kg7 {[%clk 0:00:33]}  Re7+ {[%clk 0:04:16]} 93. Kh6 {[%clk 0:00:33]} 1-0


[Site "http://www.Chess.com"]